[Event "EYCC O18-ch 2024"]
[Site "Prague"]
[Date "2024.08.28"]
[Round "6.3"]
[White "Chyzy, Jakub"]
[Black "Vilimek, Vit"]
[Result "1-0"]
[ECO "B30"]
[WhiteElo "2368"]
[BlackElo "2203"]
[Annotator "RC"]
[PlyCount "153"]
[EventDate "2024.08.19"]
[EventType "swiss"]
[EventCountry "CZE"]
[SourceTitle "playchess.com"]
[Source "ChessBase"]
[SourceQuality "1"]
[TimeControl "5400+30"]

1. e4 {[%emt 0:00:02]} c5 {[%emt 0:00:05]} 2. Nf3 {[%emt 0:00:03]} Nc6 {[%emt 0:00:04]} 3. Bb5 {[%emt 0:00:04]} Nf6 {[%emt 0:00:06]} 4. e5 {[%emt 0:03:07]} Nd5 {[%emt 0:00:02]} 5. O-O {[%emt 0:01:16]} Nc7 {[%emt 0:01:03]} 6. Bxc6 {[%emt 0:00:30]} dxc6 {[%emt 0:00:03]} 7. h3 {[%emt 0:00:14]} h6 {[%emt 0:00:27]} 8. d3 {[%emt 0:18:14]} g5 {[%emt 0:03:16]} 9. Nh2 {[%emt 0:00:06]} Bg7 {[%emt 0:02:48]} 10. Re1 {[%emt 0:00:05]} Bf5 {[%emt 0:04:28]} 11. a4 {[%emt 0:00:42]} Ne6 {[%emt 0:02:27]} 12. Nd2 {[%emt 0:02:49]} Qd5 {[%emt 0:07:28]} 13. Nc4 {[%emt 0:01:25]} Bg6 {[%emt 0:02:28]} 14. a5 {[%emt 0:00:36]} O-O-O {[%emt 0:01:28]} 15. Nf1 {[%emt 0:06:26]} Qxc4 {[%emt 0:16:15]} 16. dxc4 {[%emt 0:00:12]} Rxd1 {[%emt 0:00:02]} 17. Rxd1 {[%emt 0:00:07]} Bxc2 {[%emt 0:00:05]} 18. Re1 {[%emt 0:00:49]} Bd3 {[%emt 0:03:02]} 19. Bd2 {[%emt 0:11:54]} Nd4 {[%emt 0:06:31]} 20. Ne3 {[%emt 0:00:30]} Rd8 {[%emt 0:18:59]} 21. Ra3 {[%emt 0:18:35]} Bg6 {[%emt 0:03:49]} 22. Bc3 {[%emt 0:02:01]} e6 {[%emt 0:08:27]} 23. b4 {[%emt 0:02:30]} cxb4 {[%emt 0:03:36]} 24. Bxb4 {[%emt 0:00:06]} Bxe5 {[%emt 0:01:42]} 25. Bc5 {[%emt 0:01:35]} Kb8 {[%emt 0:04:29]} 26. Kf1 {[%emt 0:04:56]} Bg7 {[%emt 0:02:00]} 27. Rd1 {[%emt 0:02:22]} f5 {[%emt 0:03:56]} 28. Nc2 {[%emt 0:06:13]} e5 {[%emt 0:02:42]} 29. Nb4 {[%emt 0:00:12]} Bf8 {[%emt 0:01:38]} 30. Bxf8 {[%emt 0:00:06]} Rxf8 {[%emt 0:00:01]} 31. Re3 {[%emt 0:06:39]} Re8 {[%emt 0:00:04]} 32. c5 {[%emt 0:06:09]} f4 {[%emt 0:00:18]} 33. Ree1 {[%emt 0:02:20]} Kc7 {[%emt 0:02:15]} 34. Kg1 {[%emt 0:02:22]} f3 {[%emt 0:00:51]} 35. Re3 {[%emt 0:01:02]} fxg2 {[%emt 0:00:21]} 36. Kxg2 {[%emt 0:01:37]} Nf5 {[%emt 0:00:32]} 37. Ra3 {[%emt 0:00:20]} a6 {[%emt 0:00:19]} 38. Kf1 {[%emt 0:00:11]} e4 {[%emt 0:00:36]} 39. Re1 {[%emt 0:00:14]} Nd4 {[%emt 0:00:41]} 40. Kg2 {[%emt 0:01:14]} Ne6 {[%emt 0:00:11]} 41. Rc3 {[%emt 0:00:25]} Nf4+ {[%emt 0:00:15]} 42. Kg3 {[%emt 0:00:10]} Bf5 {[%emt 0:00:43]} 43. f3 {[%emt 0:00:05]} Bxh3 {[%emt 0:00:37]} 44. fxe4 {[%emt 0:00:48]} Be6 {[%emt 0:00:40]} 45. Nd3 {[%emt 0:00:12]} Nxd3 {[%emt 0:00:29]} 46. Rxd3 {[%emt 0:00:01]} h5 {[%emt 0:00:11]} 47. Rd6 {[%emt 0:00:13]} h4+ {[%emt 0:00:20]} 48. Kg2 {[%emt 0:00:11]} g4 {[%emt 0:00:47]} 49. Rf1 {[%emt 0:00:27]} Re7 {[%emt 0:00:45]} 50. Rf4 {[%emt 0:00:43]} Bc8 {[%emt 0:00:35]} 51. Rh6 {[%emt 0:00:40]} h3+ {[%emt 0:00:07]} 52. Kg3 {[%emt 0:00:15]} Bd7 {[%emt 0:00:48]} 53. Rh8 {[%emt 0:01:16]} Bc8 {[%emt 0:00:33]} 54. Rhf8 {[%emt 0:00:40]} Be6 {[%emt 0:00:15]} 55. R8f6 {[%emt 0:01:11]} Re8 {[%emt 0:00:48]} 56. Rf8 {[%emt 0:00:41]} Re7 {[%emt 0:00:01]} 57. Rf2 {[%emt 0:00:06]} Rd7 {[%emt 0:00:12]} 58. Rh8 {[%emt 0:00:59]} Rd3+ {[%emt 0:00:09]} 59. Kf4 {[%emt 0:00:15]} g3 {[%emt 0:00:39]} 60. Rh7+ {[%emt 0:00:32]} Kb8 {[%emt 0:00:52]} 61. Rb2 {[%emt 0:00:40]} Bc8 {[%emt 0:00:56]} 62. Rb1 {[%emt 0:00:34]} g2 {[%emt 0:00:35]} 63. e5 {[%emt 0:00:05]} Rd7 {[%emt 0:00:35]} 64. Rxd7 {[%emt 0:00:47]} h2 {[%emt 0:00:06]} 65. Rdd1 {[%emt 0:00:23]} Kc7 {[%emt 0:00:55]} 66. Kg3 {[%emt 0:00:09]} g1=Q+ {[%emt 0:00:17]} 67. Rxg1 {[%emt 0:00:05]} hxg1=Q+ {[%emt 0:00:13]} 68. Rxg1 {[%emt 0:00:03]} Kd7 {[%emt 0:00:20]} 69. Kf4 {[%emt 0:00:19]} Ke6 {[%emt 0:00:03]} 70. Rg8 {[%emt 0:00:21]} Bd7 {[%emt 0:00:10]} 71. Rd8 {[%emt 0:00:15]} Ke7 {[%emt 0:00:25]} 72. Rb8 {[%emt 0:00:04]} Ke6 {[%emt 0:00:24]} 73. Rxb7 {[%emt 0:00:05]} Bc8 {[%emt 0:00:03]} 74. Rb8 {[%emt 0:00:17]} Bd7 {[%emt 0:00:03]} 75. Rd8 {[%emt 0:00:13]} Ke7 {[%emt 0:00:03]} 76. Ra8 {[%emt 0:00:03]} Ke6 {[%emt 0:00:19]} 77. Ke4 {[%emt 0:00:06]} 1-0

[Event "EYCC O18-ch 2024"]
[Site "Prague"]
[Date "2024.08.28"]
[Round "6.3"]
[White "Koutlas, Nikolaos"]
[Black "Macias Pino, Diego"]
[Result "1-0"]
[ECO "E32"]
[WhiteElo "2322"]
[BlackElo "2477"]
[Annotator "TA"]
[PlyCount "73"]
[EventDate "2024.08.19"]
[EventType "swiss"]
[EventCountry "CZE"]
[SourceTitle "playchess.com"]
[Source "ChessBase"]
[SourceQuality "1"]
[TimeControl "5400+30"]

{[%evp 9,73,6,18,12,28,35,29,0,16,20,25,18,27,17,82,68,113,108,130,124,125,134,131,91,120,110,141,137,153,168,165,164,170,147,299,304,343,364,379,378,440,425,439,420,431,410,470,449,660,650,818,784,789,781,764,675,810,839,810,821,916,615,614,615,628,618]} 1. d4 {[%emt 0:00:03]} Nf6 {[%emt 0:00:28]} 2. c4 {[%emt 0:00:04]} e6 {[%emt 0:00:04]} 3. Nc3 {[%emt 0:00:03]} Bb4 {[%emt 0:00:04]} 4. Qc2 {[%emt 0:00:04]} h6 {[%emt 0:01:02]} 5. a3 {[%emt 0:03:24]} Bxc3+ {[%emt 0:00:27]} 6. Qxc3 {[%emt 0:00:03]} b6 {[%emt 0:00:09]} 7. Qg3 {[%emt 0:09:15]} Nc6 {[%emt 0:00:15]} 8. d5 {[%emt 0:09:58] White has an edge.} (8. Nf3 $5) 8... Ne7 {[%emt 0:00:44]} 9. e4 {[%emt 0:05:12] Repels Nf5} (9. Qxg7 $2 Ng6 10. Bxh6 Rh7 $19 (10... exd5 $2 11. Bg5 $18)) 9... d6 {[%emt 0:02:48]} 10. dxe6 {[%emt 0:07:07]} (10. Qxg7 $2 Ng6 11. dxe6 (11. Bxh6 $2 Rh7 $19) 11... Bxe6 12. Bxh6 Rh7 $19 (12... Nxe4 13. Be3 $14)) 10... Bxe6 {[%emt 0:02:46]} 11. Bd3 {[%emt 0:00:46][%cal Of2f4]} (11. Qxg7 $2 Ng6 12. c5 (12. Bxh6 $2 Rh7 $19) 12... Rh7 13. Bb5+ Ke7 $19) 11... Ng6 {[%emt 0:04:32]} (11... Nh5 $11 12. Qf3 Nf6) 12. f4 $1 $16 {[%emt 0:03:24]} Qe7 {[%emt 0:00:56][%cal Of6e4] [#]} 13. Ne2 $1 {[%emt 0:01:16]} Bg4 {[%emt 0:09:07][%cal Og4e2]} 14. Nc3 {[%emt 0:01:32]} h5 {[%emt 0:00:29][%cal Bh6h5,Bh5h4][%mdl 32]} 15. h3 {[%emt 0:04:58]} h4 {[%emt 0:00:56]} 16. Qf2 {[%emt 0:00:11]} Bd7 {[%emt 0:00:35]} 17. O-O {[%emt 0:00:50][%cal Oe4e5] e5! would now be deadly.} O-O {[%emt 0:07:42]} 18. Qf3 {[%emt 0:03:08]} Rfe8 {[%emt 0:10:35]} 19. Bd2 {[%emt 0:00:49]} c6 {[%emt 0:01:39]} 20. Rae1 {[%emt 0:04:14]} a6 {[%emt 0:03:32]} 21. Kh1 {[%emt 0:09:10]} b5 $2 {[%emt 0:01:53] [#] This costs Black the game.} (21... Rad8 $16 22. a4 Rb8) 22. c5 $1 $18 {[%emt 0:00:07][%mdl 512]} dxc5 {[%emt 0:02:18]} (22... Nh7 23. cxd6) 23. e5 {[%emt 0:00:19][%cal Be4e5,Be5e6][%mdl 32]} Nd5 {[%emt 0:00:19]} 24. e6 {[%emt 0:02:42]} (24. Nxd5 cxd5 25. e6 (25. Qxd5 Rad8 $16) 25... Nf8 26. exd7 Qxd7 $18) 24... Nf6 {[%emt 0:06:48]} 25. f5 {[%emt 0:02:25]} (25. exd7 Qxd7 26. Rd1 (26. Ne4 Nxe4 27. Bxe4 Qxd2 $16) 26... Rad8 $18) 25... Nf8 {[%emt 0:03:16]} 26. exd7 {[%emt 0:00:19]} Qxd7 {[%emt 0:00:01]} 27. Bg5 {[%emt 0:00:15] Strongly threatening Bxf6.} ({Stronger than} 27. Ne4 Nxe4 28. Bxe4 (28. Rxe4 Rxe4 29. Bxe4 Qxd2 $19) 28... Qxd2 $15) 27... Qd4 {[%emt 0:02:20]} 28. Bxf6 {[%emt 0:00:34] White is clearly winning.} gxf6 {[%emt 0:02:40]} (28... Qxf6 $142 29. Ne4 Qxb2) 29. Be4 {[%emt 0:01:02]} Rac8 {[%emt 0:01:49]} 30. Bxc6 {[%emt 0:00:24]} Rxe1 {[%emt 0:01:16]} 31. Rxe1 {[%emt 0:00:05] aiming for Bd5.} Qd2 {[%emt 0:00:50]} 32. Qg4+ {[%emt 0:01:33]} Kh8 {[%emt 0:00:09]} 33. Qxh4+ {[%emt 0:00:05]} Nh7 {[%emt 0:00:04]} 34. Bd5 {[%emt 0:02:01]} b4 {[%emt 0:01:31]} 35. Ne4 {[%emt 0:00:05]} Qxd5 {[%emt 0:00:50] [#]} 36. Qxh7+ $3 {[%emt 0:00:04][%mdl 512]} Kxh7 {[%emt 0:00:05]} 37. Nxf6+ {[%emt 0:00:03] Weighted Error Value: White=0.26 (precise) /Black=0.30.  Mistake:       	---       	Black=3      Inaccurate:     	White=1     	Black=2      OK:         	White=13    	Black=7      Best:        	---       	Black=1      Strong:       	White=2     	---        Brilliant:      	White=1     	---} 1-0

[Event "EYCC O18-ch 2024"]
[Site "Prague"]
[Date "2024.08.28"]
[Round "6.4"]
[White "Talibov, Shiroghlan"]
[Black "Stalmach, Richard"]
[Result "0-1"]
[ECO "B69"]
[WhiteElo "2395"]
[BlackElo "2443"]
[Annotator "TA"]
[PlyCount "166"]
[EventDate "2024.08.19"]
[EventType "swiss"]
[EventCountry "CZE"]
[SourceTitle "playchess.com"]
[Source "ChessBase"]
[SourceQuality "1"]
[TimeControl "5400+30"]

{[%evp 64,166,76,76,66,25,52,25,34,8,27,15,15,8,6,0,21,22,15,0,1,1,1,8,8,0,0,0,113,113,113,113,113,113,113,113,360,120,363,360,365,365,365,327,184,0,263,0,267,0,75,0,77,83,83,0,0,0,128,128,128,0,0,0,0,0,102,29,29,37,37,0,0,0,0,-8,-8,-8,-8,-29938,-11205,-29968,-29969,-29967,-29969,-29971,-29974,-29973,-29974,-29975,-29976,-29975,-29976,-29978,-29979,-29979,-29980,-29980,-29981,-29981,-29982,-29982,-29983,-29983,-29984]} 1. e4 {[%emt 0:00:02]} c5 {[%emt 0:00:04]} 2. Nf3 {[%emt 0:00:04]} d6 {[%emt 0:00:05]} 3. d4 {[%emt 0:00:05]} cxd4 {[%emt 0:00:03]} 4. Nxd4 {[%emt 0:00:04]} Nf6 {[%emt 0:00:04]} 5. Nc3 {[%emt 0:00:06]} Nc6 {[%emt 0:00:09]} 6. Bg5 {[%emt 0:00:04]} e6 {[%emt 0:00:04]} 7. Qd2 {[%emt 0:00:28]} a6 {[%emt 0:00:06]} 8. O-O-O {[%emt 0:00:09]} Bd7 {[%emt 0:00:03]} 9. f4 {[%emt 0:00:46]} Be7 {[%emt 0:00:51]} 10. Nf3 {[%emt 0:00:28]} b5 {[%emt 0:00:15]} 11. Bxf6 {[%emt 0:03:09]} gxf6 {[%emt 0:00:08]} 12. Kb1 {[%emt 0:00:44]} Qb6 {[%emt 0:00:13]} 13. Bd3 {[%emt 0:02:24]} O-O-O {[%emt 0:01:04] B69: Sicilian: Richter-Rauzer: 7...a6 8 0-0-0 Bd7 9 f4 Be7 10 Nf3 b5 11 Bxf6.} 14. Rhe1 {[%emt 0:01:31]} Kb8 {[%emt 0:00:44]} 15. Nd5 {[%emt 0:02:06]} exd5 {[%emt 0:02:26]} 16. exd5 {[%emt 0:00:12]} Ne5 {[%emt 0:00:16]} 17. fxe5 {[%emt 0:00:04]} fxe5 {[%emt 0:01:35]} 18. Qh6 {[%emt 0:00:05]} Qc5 {[%emt 0:06:10]} 19. Qh5 {[%emt 0:00:06]} Rdf8 {[%emt 0:13:04]} 20. Bf5 {[%emt 0:00:17]} Qc8 {[%emt 0:02:37]} 21. g4 $146 {[%emt 0:02:17]} ({Predecessor:} 21. Bxd7 Qxd7 22. g3 Bd8 23. Re3 Rhg8 24. Rc3 f5 25. a3 {½-½ Eldridge,M (2541)-Wosch,A (2475) FICGS class GM 000003 email 2020 (1)}) 21... Rhg8 {[%emt 0:10:41]} 22. Qxh7 {[%emt 0:30:25]} Bxf5 {[%emt 0:07:48]} 23. gxf5 {[%emt 0:10:14]} Rh8 {[%emt 0:00:07]} 24. Qg7 {[%emt 0:00:03]} Qxf5 {[%emt 0:00:05]} 25. Nd4 {[%emt 0:08:35]} exd4 {[%emt 0:00:46]} 26. Rxe7 {[%emt 0:00:06]} Rc8 {[%emt 0:00:02]} 27. Re2 {[%emt 0:04:38]} Rhe8 {[%emt 0:03:00]} 28. Qxd4 {[%emt 0:00:45]} Kb7 {[%emt 0:03:26]} 29. Rf2 {[%emt 0:01:23]} Qg6 {[%emt 0:03:06]} 30. b3 {[%emt 0:01:54]} Rc7 {[%emt 0:01:20]} 31. Rdf1 {[%emt 0:05:09]} Re5 {[%emt 0:01:56]} 32. Qd1 {[%emt 0:03:55]} Qh5 {[%emt 0:05:25]} 33. Qxh5 {[%emt 0:00:19]} Rxh5 {[%emt 0:00:05]} 34. Rd2 {[%emt 0:00:02]} Kb6 {[%emt 0:01:42]} 35. Rf3 {[%emt 0:01:33]} f5 {[%emt 0:02:05]} 36. Kb2 {[%emt 0:01:54]} Rch7 {[%emt 0:03:33]} 37. Rc3 {[%emt 0:00:32]} Rc7 $1 {[%emt 0:00:48]} 38. Re3 {[%emt 0:08:30]} Rch7 {[%emt 0:07:24]} 39. Rc3 {[%emt 0:00:12]} Rc7 $1 {[%emt 0:00:05]} 40. Rxc7 {[%emt 0:00:11]} Kxc7 {[%emt 0:00:01]} 41. Rf2 {[%emt 0:00:49]} a5 {[%emt 0:00:17]} 42. a3 {[%emt 0:02:39]} Kb6 {[%emt 0:00:28]} 43. b4 {[%emt 0:00:06]} a4 {[%emt 0:00:24]} 44. c3 {[%emt 0:01:25]} f4 {[%emt 0:00:41]} 45. Kc2 {[%emt 0:00:50]} Rxd5 {[%emt 0:06:19]} (45... Rh3 $11 {keeps the balance.}) 46. Rxf4 $16 {[%emt 0:00:06]} Rg5 {[%emt 0:00:03]} 47. Rd4 $1 {[%emt 0:02:50]} Kc6 {[%emt 0:03:43]} 48. h4 {[%emt 0:00:05]} Rh5 {[%emt 0:02:41]} 49. Kd3 {[%emt 0:00:17]} d5 $2 {[%emt 0:00:49]} (49... Rh7 $16 {might work better.} 50. Ke2 Kd7) 50. Rg4 $1 $18 {[%emt 0:01:55]} Kd6 $2 {[%emt 0:05:58]} (50... Rh8 $16 51. Kd4 Rh6) 51. Kd4 $18 {[%emt 0:00:12]} Rh6 {[%emt 0:01:05]} 52. Rf4 {[%emt 0:00:35]} Rh5 {[%emt 0:00:10]} 53. Rf6+ {[%emt 0:01:46]} Kc7 {[%emt 0:00:05]} 54. Rf7+ $2 {[%emt 0:01:39]} (54. Rf3 $18) 54... Kd6 $2 {[%emt 0:00:07][%mdl 8192]} (54... Kc6 $1 $11 {and Black is okay.}) 55. Rf6+ {[%emt 0:00:01]} Kc7 {[%emt 0:00:02]} 56. Rf4 $2 {[%emt 0:00:04]} (56. Rf3 $18 {has better winning chances.}) 56... Kd6 $16 {[%emt 0:00:11]} 57. Rg4 {[%emt 0:00:31]} Rh6 $1 {[%emt 0:00:04]} 58. Ke3 $1 {[%emt 0:00:04]} Rh8 {[%emt 0:02:46]} 59. Rf4 {[%emt 0:02:24]} ({Don't do} 59. Kd4 $6 Rh6 $18) ({White should play} 59. Ke2 $16) 59... Ke5 $11 {[%emt 0:01:35]} 60. Rg4 {[%emt 0:01:02]} (60. Rd4 $11) 60... Kd6 $1 $16 {[%emt 0:00:09]} 61. Kf2 {[%emt 0:01:37]} ({Much less strong is} 61. Kd4 Rh6 $18) 61... Ke5 {[%emt 0:01:28]} 62. Kg2 {[%emt 0:00:58]} ({Better is} 62. Ke2 $16) 62... Kf5 $11 {[%emt 0:02:41]} 63. Kh3 {[%emt 0:00:37]} Rc8 {[%emt 0:00:29]} 64. Rg3 {[%emt 0:01:25]} Kf4 {[%emt 0:01:39] [#]} (64... Rh8 $1 $11) 65. h5 {[%emt 0:01:52]} (65. Kg2 $1 $16) 65... Rh8 $11 {[%emt 0:01:59]} 66. Rg4+ {[%emt 0:00:04]} Ke3 {[%emt 0:00:40]} 67. Rg5 {[%emt 0:00:29]} Rd8 {[%emt 0:02:09]} 68. h6 {[%emt 0:02:01]} Kd2 {[%emt 0:00:16]} 69. h7 {[%emt 0:00:32]} Rh8 $1 {[%emt 0:00:02]} 70. Rxd5+ {[%emt 0:00:32]} Kxc3 {[%emt 0:00:01]} 71. Rd7 $2 {[%emt 0:00:28][%mdl 8192]} (71. Rxb5 $11 Rxh7+ 72. Kg4) 71... Kb2 {[%emt 0:00:09]} 72. Rd3 {[%emt 0:00:27]} Rxh7+ {[%emt 0:00:04]} 73. Kg4 {[%emt 0:00:05]} Rc7 {[%emt 0:00:35]} 74. Kf4 {[%emt 0:00:31]} Rc3 {[%emt 0:00:39]} 75. Rd5 {[%emt 0:00:04]} Rxa3 {[%emt 0:00:39]} 76. Rxb5 {[%emt 0:00:04]} Rc3 {[%emt 0:01:15]} 77. Ke5 {[%emt 0:00:24]} a3 {[%emt 0:00:18]} 78. Ra5 {[%emt 0:00:51]} a2 {[%emt 0:00:12]} 79. Rxa2+ {[%emt 0:00:37]} Kxa2 {[%emt 0:00:05]} 80. Kd6 {[%emt 0:00:35] [#]} Rb3 $1 {[%emt 0:00:04]} 81. Kc5 {[%emt 0:00:08]} Ka3 {[%emt 0:00:04]} 82. b5 {[%emt 0:00:05]} Ka4 {[%emt 0:00:03]} 83. b6 {[%emt 0:00:01]} Ka5 {[%emt 0:00:04]} 0-1

[Event "EYCC O18-ch 2024"]
[Site "Prague"]
[Date "2024.08.28"]
[Round "6.4"]
[White "Ribeiro, Gustavo"]
[Black "Karolczuk, Iwo"]
[Result "0-1"]
[ECO "A62"]
[WhiteElo "2183"]
[BlackElo "2356"]
[Annotator "RC"]
[PlyCount "64"]
[EventDate "2024.08.19"]
[EventType "swiss"]
[EventCountry "CZE"]
[SourceTitle "playchess.com"]
[Source "ChessBase"]
[SourceQuality "1"]
[TimeControl "5400+30"]

1. d4 Nf6 {[%emt 0:00:13]} 2. c4 {[%emt 0:00:05]} e6 {[%emt 0:00:11]} 3. g3 {[%emt 0:00:05]} c5 {[%emt 0:02:09]} 4. d5 {[%emt 0:00:09]} exd5 {[%emt 0:00:12]} 5. cxd5 {[%emt 0:00:06]} d6 {[%emt 0:00:13]} 6. Bg2 {[%emt 0:00:04]} g6 {[%emt 0:00:17]} 7. Nc3 {[%emt 0:00:13]} Bg7 {[%emt 0:00:08]} 8. Nf3 {[%emt 0:00:03]} O-O {[%emt 0:00:10]} 9. O-O {[%emt 0:00:06]} Re8 {[%emt 0:00:12]} 10. a4 {[%emt 0:02:10]} Na6 {[%emt 0:11:16]} 11. Nd2 {[%emt 0:02:05]} Nc7 {[%emt 0:03:38]} 12. e4 {[%emt 0:01:17]} b6 {[%emt 0:02:34]} 13. Nc4 {[%emt 0:17:36]} Ba6 {[%emt 0:01:54]} 14. Qb3 {[%emt 0:00:09]} Ng4 {[%emt 0:03:43]} 15. Nb5 {[%emt 0:10:15]} Bxb5 {[%emt 0:02:40]} 16. axb5 {[%emt 0:00:05]} Ne5 {[%emt 0:05:19]} 17. Ne3 {[%emt 0:11:07]} a6 {[%emt 0:05:23]} 18. bxa6 {[%emt 0:02:30]} b5 {[%emt 0:02:56]} 19. Bd2 {[%emt 0:00:26]} c4 {[%emt 0:05:25]} 20. Qc2 {[%emt 0:00:32]} Nxa6 {[%emt 0:02:04]} 21. Bc3 {[%emt 0:03:07]} Nc5 {[%emt 0:00:33]} 22. f4 {[%emt 0:04:34]} Rxa1 {[%emt 0:03:46]} 23. Rxa1 {[%emt 0:00:04]} Ned3 {[%emt 0:03:11]} 24. Bxg7 {[%emt 0:01:04]} Kxg7 {[%emt 0:00:07]} 25. Ng4 {[%emt 0:00:23]} Nxe4 {[%emt 0:03:06]} 26. Bxe4 {[%emt 0:07:25]} Qb6+ {[%emt 0:01:12]} 27. Kg2 {[%emt 0:00:16]} Rxe4 {[%emt 0:00:24]} 28. Qc3+ {[%emt 0:01:44]} Qd4 {[%emt 0:00:44]} 29. Ra8 {[%emt 0:01:52]} h5 {[%emt 0:10:38]} 30. Qxd4+ {[%emt 0:04:15]} Rxd4 {[%emt 0:00:07]} 31. Ne3 {[%emt 0:00:01]} Nxb2 {[%emt 0:00:37]} 32. Rc8 {[%emt 0:01:07]} Nd1 {[%emt 0:00:34]} 0-1

[Event "EYCC O18-ch 2024"]
[Site "Prague"]
[Date "2024.08.28"]
[Round "6.5"]
[White "Soderstrom, Adrian"]
[Black "Levin, Guy"]
[Result "1/2-1/2"]
[ECO "B33"]
[WhiteElo "2318"]
[BlackElo "2436"]
[Annotator "RC"]
[PlyCount "33"]
[EventDate "2024.08.19"]
[EventType "swiss"]
[EventCountry "CZE"]
[SourceTitle "playchess.com"]
[Source "ChessBase"]
[SourceQuality "1"]
[TimeControl "5400+30"]

1. e4 {[%emt 0:00:09]} c5 {[%emt 0:00:06]} 2. Nf3 {[%emt 0:00:07]} Nc6 {[%emt 0:00:03]} 3. d4 {[%emt 0:00:12]} cxd4 {[%emt 0:00:05]} 4. Nxd4 {[%emt 0:00:07]} Nf6 {[%emt 0:00:05]} 5. Nc3 {[%emt 0:00:13]} e6 {[%emt 0:00:03]} 6. Nxc6 {[%emt 0:00:18]} bxc6 {[%emt 0:00:05]} 7. e5 {[%emt 0:00:08]} Nd5 {[%emt 0:00:03]} 8. Ne4 {[%emt 0:00:09]} Bb7 {[%emt 0:00:04]} 9. Be2 {[%emt 0:00:07]} c5 {[%emt 0:00:22]} 10. O-O {[%emt 0:00:10]} Qc7 {[%emt 0:00:12]} 11. Nd6+ {[%emt 0:00:07]} Bxd6 {[%emt 0:00:04]} 12. exd6 {[%emt 0:00:05]} Qc6 {[%emt 0:00:08]} 13. f3 {[%emt 0:00:04]} c4 {[%emt 0:02:00]} 14. Qd4 {[%emt 0:00:06]} O-O {[%emt 0:00:25]} 15. Bxc4 {[%emt 0:00:06]} Qxd6 {[%emt 0:00:54]} 16. b3 {[%emt 0:00:23]} Qb6 {[%emt 0:05:34]} 17. Bb2 {[%emt 0:04:46]} 1/2-1/2

[Event "EYCC O18-ch 2024"]
[Site "Prague"]
[Date "2024.08.28"]
[Round "6.5"]
[White "Loftgaard, Mikkel Vinh"]
[Black "Palczert, Matyas"]
[Result "1-0"]
[ECO "C55"]
[WhiteElo "2227"]
[BlackElo "2341"]
[Annotator "RC"]
[PlyCount "119"]
[EventDate "2024.08.19"]
[EventType "swiss"]
[EventCountry "CZE"]
[SourceTitle "playchess.com"]
[Source "ChessBase"]
[SourceQuality "1"]
[TimeControl "5400+30"]

1. e4 {[%emt 0:00:01]} e5 {[%emt 0:00:06]} 2. Nf3 {[%emt 0:00:06]} Nc6 {[%emt 0:00:06]} 3. Bc4 {[%emt 0:00:31]} Nf6 {[%emt 0:00:14]} 4. d3 {[%emt 0:00:06]} h6 {[%emt 0:00:24]} 5. O-O {[%emt 0:00:45]} d6 {[%emt 0:00:10]} 6. c3 {[%emt 0:00:21]} g6 {[%emt 0:00:51]} 7. b4 {[%emt 0:02:27]} Bg7 {[%emt 0:01:28]} 8. Re1 {[%emt 0:00:58]} O-O {[%emt 0:01:07]} 9. Nbd2 {[%emt 0:01:51]} a6 {[%emt 0:07:03]} 10. a4 {[%emt 0:02:59]} d5 {[%emt 0:06:33]} 11. exd5 {[%emt 0:01:14]} Nxd5 {[%emt 0:00:09]} 12. Ne4 {[%emt 0:03:18]} Bf5 {[%emt 0:19:23]} 13. Bxh6 {[%emt 0:13:01]} Nxc3 {[%emt 0:07:03]} 14. Qb3 {[%emt 0:05:49]} Bxh6 {[%emt 0:03:46]} 15. Qxc3 {[%emt 0:01:14]} Bg7 {[%emt 0:00:47]} 16. Rab1 {[%emt 0:03:23]} Rb8 {[%emt 0:10:23]} 17. b5 {[%emt 0:01:44]} axb5 {[%emt 0:00:12]} 18. axb5 {[%emt 0:00:35]} Nd4 {[%emt 0:00:38]} 19. Nxd4 {[%emt 0:00:42]} Qxd4 {[%emt 0:03:09]} 20. Qxd4 {[%emt 0:00:49]} exd4 {[%emt 0:00:01]} 21. Ng3 {[%emt 0:01:45]} Rfe8 {[%emt 0:19:57]} 22. Nxf5 {[%emt 0:01:24]} gxf5 {[%emt 0:00:01]} 23. Bd5 {[%emt 0:01:56]} Be5 {[%emt 0:01:16]} 24. g3 {[%emt 0:00:49]} Kg7 {[%emt 0:01:48]} 25. f4 {[%emt 0:00:34]} Bd6 {[%emt 0:00:09]} 26. Rxe8 {[%emt 0:00:35]} Rxe8 {[%emt 0:00:04]} 27. Bxb7 {[%emt 0:00:08]} Re3 {[%emt 0:00:28]} 28. Rb3 {[%emt 0:02:04]} Re2 {[%emt 0:00:45]} 29. Bc8 {[%emt 0:02:30]} Rc2 {[%emt 0:03:42]} 30. Bxf5 {[%emt 0:00:19]} Rc5 {[%emt 0:02:18]} 31. Be4 {[%emt 0:03:29]} Rc1+ {[%emt 0:01:10]} 32. Kg2 {[%emt 0:00:39]} Rc2+ {[%emt 0:00:01]} 33. Kf3 {[%emt 0:01:16]} Rxh2 {[%emt 0:00:42]} 34. b6 {[%emt 0:00:08]} cxb6 {[%emt 0:00:06]} 35. Rxb6 {[%emt 0:00:06]} Rh6 {[%emt 0:01:12]} 36. Rb7 {[%emt 0:00:21]} Re6 {[%emt 0:00:55]} 37. Rd7 {[%emt 0:01:22]} Bc5 {[%emt 0:00:31]} 38. g4 {[%emt 0:00:21]} Re7 {[%emt 0:00:24]} 39. Rd5 {[%emt 0:00:07]} Ba7 {[%emt 0:00:43]} 40. g5 {[%emt 0:00:17]} f6 {[%emt 0:01:37]} 41. g6 {[%emt 0:00:11]} Bb6 {[%emt 0:01:20]} 42. Rb5 {[%emt 0:02:24]} Ba7 {[%emt 0:00:47]} 43. Rh5 {[%emt 0:00:31]} Bb6 {[%emt 0:01:03]} 44. f5 {[%emt 0:02:02]} Bc7 {[%emt 0:00:41]} 45. Bd5 {[%emt 0:02:26]} Bd6 {[%emt 0:00:15]} 46. Be6 {[%emt 0:00:48]} Rc7 {[%emt 0:04:02]} 47. Ke4 {[%emt 0:00:13]} Be5 {[%emt 0:00:14]} 48. Rh7+ {[%emt 0:00:17]} Kf8 {[%emt 0:00:01]} 49. Rxc7 {[%emt 0:00:20]} Bxc7 {[%emt 0:00:03]} 50. Kxd4 {[%emt 0:00:06]} Bf4 {[%emt 0:00:19]} 51. Kd5 {[%emt 0:01:12]} Bh6 {[%emt 0:00:18]} 52. Kd6 {[%emt 0:00:13]} Be3 {[%emt 0:00:24]} 53. Kd5 {[%emt 0:01:34]} Bh6 {[%emt 0:00:06]} 54. d4 {[%emt 0:00:33]} Be3 {[%emt 0:02:17]} 55. Kc5 {[%emt 0:00:54]} Bf2 {[%emt 0:00:39]} 56. Kc4 {[%emt 0:00:09]} Be3 {[%emt 0:00:05]} 57. d5 {[%emt 0:00:09]} Bh6 {[%emt 0:00:46]} 58. d6 {[%emt 0:00:08]} Ke8 {[%emt 0:00:20]} 59. Bc8 {[%emt 0:00:37]} Kd8 {[%emt 0:00:14]} 60. Ba6 {[%emt 0:00:01]} 1-0